bitfinex/quotes_ETHUSD_20240921
["timestamp","ask_amount","ask_price","bid_price","bid_amount"]
[1726878998738,10.42389689,2570.3,2570.2,0.0375987]
[1726878999037,10.42254138,2570.3,2570.2,0.0375987]
[1726879002616,9.87254138,2570.3,2570.2,0.0375987]
[1726879004331,10.42254138,2570.3,2570.2,0.0375987]
[1726879004932,9.87254138,2570.3,2570.2,0.0375987]
[1726879006349,10.42254138,2570.3,2570.2,0.0375987]
[1726879007635,0.62634138,2570.3,2570.2,0.0375987]
[1726879015366,0.07634138,2570.3,2570.2,3.0375987]
[1726879015528,0.07634138,2570.3,2570.2,4.42065593]
[1726879015866,7.37,2571.0,2570.2,4.42065593]
[1726879016071,0.06418283,2570.3,2570.2,4.42065593]
[1726879016275,7.37,2570.9,2570.2,4.42065593]
[1726879016577,0.06418283,2570.3,2570.2,4.42065593]
[1726879016775,7.37,2570.9,2570.2,4.42065593]
[1726879016930,0.55,2571.1,2570.2,4.42065593]
[1726879017129,0.0644642,2570.8,2570.2,4.42065593]
[1726879017332,0.55,2571.1,2570.2,4.42065593]
[1726879017564,0.06442723,2570.7,2570.2,4.42065593]
[1726879017729,0.55,2571.1,2570.2,4.42065593]
[1726879017938,0.06439026,2570.6,2570.2,4.42065593]
[1726879018163,0.55,2571.1,2570.2,4.42065593]
[1726879018456,17.0363,2571.2,2570.4,3.0]
[1726879018457,7.37,2571.2,2570.4,3.0]
[1726879018661,0.06452863,2571.0,2570.4,3.0]
[1726879018882,7.37,2571.2,2570.4,3.0]
[1726879019034,0.06458156,2570.9,2570.4,3.0]
[1726879019374,0.07769689,2570.8,2570.2,3.0375987]
[1726879019531,0.14224149,2570.8,2570.2,3.0375987]
[1726879019729,0.55,2570.7,2570.2,3.0375987]
[1726879020140,0.06447066,2570.6,2570.2,3.0375987]
[1726879023042,0.06447066,2570.6,2570.2,4.33874957]
[1726879023245,0.07769689,2571.1,2570.2,4.26093857]
[1726879023553,0.06438105,2570.5,2570.2,3.11540004]
[1726879023771,0.07769689,2571.1,2570.2,3.11540004]
[1726879023975,0.06435067,2570.4,2570.2,3.0375987]
[1726879024146,0.07769689,2571.1,2570.2,3.0375987]
[1726879024488,0.0645725,2571.0,2570.2,3.0375987]
[1726879024691,0.07769689,2570.9,2570.2,3.0375987]
[1726879024912,0.14223242,2570.9,2570.2,3.0375987]
[1726879025196,9.6663,2570.7,2570.2,3.0375987]
[1726879025554,0.06442462,2570.6,2570.2,3.0375987]
[1726879026007,0.55,2570.5,2570.2,0.0375987]
[1726879026211,0.14212151,2570.6,2570.2,0.0375987]
[1726879026212,0.55,2570.3,2570.2,0.0375987]
[1726879026355,0.06455869,2570.5,2570.2,0.0375987]
[1726879026562,0.06448661,2570.4,2570.2,0.0375987]
[1726879027063,0.06438385,2570.3,2570.2,0.11540443]
[1726879027262,7.37,2570.9,2570.2,0.11540443]
[1726879027500,0.06435317,2570.3,2570.2,3.0375987]
[1726879027686,7.37,2570.9,2570.2,3.36287369]
[1726879027996,0.06435317,2570.3,2570.2,3.0375987]
[1726879028303,7.37,2570.9,2570.2,3.0375987]
[1726879028463,0.07769689,2571.0,2570.2,3.0375987]
[1726879028464,0.06435317,2570.3,2570.2,3.0375987]
[1726879028801,9.6663,2570.7,2570.2,0.0375987]
[1726879029002,0.62769689,2570.6,2570.2,0.0375987]
[1726879029205,0.69223773,2570.6,2570.2,0.0375987]
[1726879029704,0.55,2570.4,2570.2,0.0375987]
[1726879029862,10.29399689,2570.3,2570.2,0.0375987]
[1726879030059,10.28080664,2570.3,2570.2,0.0375987]
[1726879036173,0.06450664,2570.3,2570.2,0.0375987]
[1726879036512,0.07769689,2570.5,2570.2,0.0375987]
[1726879036692,0.06405487,2570.3,2570.2,0.0375987]
[1726879036897,10.03599689,2570.3,2570.2,0.0375987]
[1726879037095,10.02235487,2570.3,2570.2,0.0375987]
[1726879037508,10.57235487,2570.3,2570.2,0.0375987]
[1726879043885,0.06405487,2570.3,2570.2,0.0375987]
[1726879044097,9.9583,2570.9,2570.2,0.0375987]
[1726879044422,0.06403731,2570.3,2570.2,9.6157987]
[1726879044590,9.9583,2571.2,2570.3,3.0]
[1726879044933,0.14205849,2571.1,2570.3,3.0]
[1726879046593,0.55,2571.0,2570.3,3.0]
[1726879046789,0.55,2570.8,2570.3,3.0]
[1726879047103,0.06457342,2570.7,2570.3,3.0]
[1726879047288,0.55,2570.8,2570.3,4.26157987]
[1726879047731,0.06458438,2570.7,2570.3,4.26157987]
[1726879047912,0.55,2570.8,2570.4,9.5782]
[1726879048117,0.06456058,2570.6,2570.4,9.5782]
[1726879048330,9.9583,2571.2,2570.4,9.5782]
[1726879048331,0.55,2571.0,2570.4,9.5782]
[1726879048547,0.0645236,2570.5,2570.4,13.96593786]
[1726879048846,2.0339858,2571.8,2570.4,13.96593786]
[1726879048847,9.9583,2572.1,2570.7,9.5782]
[1726879049012,9.9583,2572.1,2570.9,9.5782]
[1726879049203,9.9583,2572.1,2570.5,0.48346207]
[1726879049204,9.9583,2572.1,2571.1,9.5782]
[1726879049395,9.9583,2572.1,2571.2,3.0]
[1726879049910,9.9583,2572.1,2571.1,9.5782]
[1726879050540,10.77035745,2572.1,2571.0,3.0]
[1726879050736,0.81205745,2572.1,2571.3,3.0]
[1726879050957,0.07769689,2572.1,2571.5,3.0]
[1726879051241,9.9583,2572.5,2571.6,9.5782]
[1726879052206,9.9583,2572.5,2571.7,3.0]
[1726879052548,0.55,2572.4,2571.7,3.0]
[1726879052720,0.55,2572.4,2571.7,4.25782]
[1726879053224,9.9583,2572.5,2571.7,4.3355835]
[1726879053426,3.0,2573.1,2571.7,4.3355835]
[1726879054648,0.55,2572.8,2571.7,4.25782]
[1726879054846,9.048,2572.9,2571.7,4.25782]
[1726879054847,0.07769689,2572.7,2571.7,4.25782]
[1726879055207,0.55,2572.6,2571.8,1.383602]
[1726879055917,9.048,2572.9,2571.8,1.383602]
[1726879055918,0.62769689,2572.8,2571.8,1.383602]
[1726879056124,7.37,2573.0,2572.0,3.0]
[1726879056323,7.37,2573.0,2572.2,9.5016]
[1726879056324,0.04893853,2572.7,2572.2,9.5016]
[1726879056538,7.37,2573.0,2572.2,9.5016]
[1726879056740,0.04748428,2572.6,2572.4,9.5016]
[1726879057051,7.37,2573.0,2572.4,9.5016]
[1726879057259,0.04744736,2572.5,2572.4,9.5016]
[1726879057491,0.0375987,2573.3,2572.4,12.5016]
[1726879057659,0.0375987,2573.3,2572.5,3.0]
[1726879057830,0.0375987,2573.3,2572.5,4.25016]
[1726879058866,3.0375987,2574.1,2572.2,0.95016]
[1726879058867,0.0375987,2574.1,2572.7,3.0]
[1726879059046,0.0375987,2574.1,2573.1,3.0]
[1726879059214,0.40476842,2574.0,2573.3,3.0]
[1726879059413,0.40476842,2574.0,2573.3,3.07770661]
[1726879059649,0.0375987,2574.1,2573.3,4.33563727]
[1726879059973,0.0375987,2574.1,2573.5,3.0]
[1726879060117,0.0375987,2574.1,2573.5,3.07770269]
[1726879060118,0.03918849,2574.0,2573.5,3.07770269]
[1726879060764,9.048,2573.9,2572.8,3.0]
[1726879061049,0.58934067,2573.8,2572.8,3.0]
[1726879062153,0.58934067,2573.8,2572.8,3.64797926]
[1726879062769,0.58934067,2573.8,2572.9,0.57025474]
[1726879064730,0.06760248,2575.4,2573.1,3.0]
[1726879065097,0.06760248,2575.4,2573.9,3.0]
[1726879065098,0.40463509,2574.8,2573.9,3.0]
[1726879065403,0.60892305,2575.5,2573.9,3.0]
[1726879066359,0.60892305,2575.5,2574.0,1.25016]
[1726879066559,0.60892305,2575.5,2573.8,9.5016]
[1726879067775,9.048,2574.8,2573.8,9.5016]
[1726879071595,9.048,2574.8,2573.9,3.0]
[1726879075877,9.048,2574.8,2573.9,2.6]
[1726879078486,0.55,2574.5,2573.3,9.7938]
[1726879078699,0.55,2574.3,2572.6,9.7938]
[1726879078867,7.18310503,2574.1,2572.7,1.02464167]
[1726879079065,7.18310503,2574.1,2572.6,10.24641667]
[1726879079066,0.55,2573.9,2572.6,9.7938]
[1726879079606,9.5249,2573.8,2572.6,9.7938]
[1726879079813,0.55,2573.7,2572.3,9.7938]
[1726879079979,9.5249,2573.6,2572.3,9.7938]
[1726879080211,0.55,2573.5,2572.3,9.7938]
[1726879080445,3.0,2573.9,2571.9,9.7938]
[1726879080446,9.5249,2573.2,2571.9,9.7938]
[1726879080614,9.5249,2573.2,2571.9,11.27481821]
[1726879080815,9.5249,2573.2,2572.0,0.45261667]
[1726879081358,0.55,2573.1,2572.0,0.45261667]
[1726879081544,0.55,2572.9,2571.8,0.0375987]
[1726879081714,0.55,2572.7,2571.8,0.0375987]
[1726879081902,9.5249,2572.6,2571.8,0.0375987]
[1726879082127,0.55,2572.5,2571.8,0.0375987]
[1726879083350,9.5249,2572.6,2571.8,0.0375987]
[1726879090446,9.5249,2572.6,2571.8,0.49021537]
[1726879090656,16.70800503,2572.9,2572.1,3.0]
[1726879090882,16.70800503,2572.9,2572.2,1.27938]
[1726879093166,16.70800503,2572.9,2572.1,3.0]
[1726879094066,9.5249,2572.9,2572.1,3.0]
[1726879094265,7.18310503,2573.2,2572.2,0.53035968]
[1726879094598,7.18310503,2573.2,2572.2,0.07774301]
[1726879095898,7.18310503,2573.2,2572.3,9.8627]
[1726879096065,7.18310503,2573.2,2572.4,3.9940443]
[1726879096259,7.18310503,2573.2,2572.4,4.07178223]
[1726879096464,7.18310503,2573.2,2572.4,3.9940443]
[1726879096777,7.18310503,2573.2,2572.4,4.0717823]
[1726879097362,9.5881,2573.3,2572.4,4.0717823]
[1726879097558,7.18310503,2573.5,2572.5,1.39344823]
[1726879097759,7.18310503,2573.5,2572.6,0.07773061]
[1726879098300,7.18310503,2573.5,2572.5,1.47117599]
[1726879098508,7.18310503,2573.5,2572.7,3.0]
[1726879098797,7.18310503,2573.5,2572.8,0.07772569]
[1726879099102,7.18310503,2573.8,2572.8,1.37176826]
[1726879099465,7.18310503,2573.8,2572.8,1.29404257]
[1726879102326,9.5881,2573.6,2572.6,9.8627]
[1726879102527,0.55,2573.7,2571.8,0.0375987]
[1726879102528,0.55,2573.3,2572.3,9.8627]
[1726879104164,9.5881,2573.4,2572.4,0.07774674]
[1726879105031,9.5881,2573.4,2572.3,9.8627]
[1726879105234,9.5881,2573.4,2572.4,0.98627]
[1726879105403,9.5881,2573.4,2572.3,9.8627]
[1726879106295,9.669,2573.7,2572.4,3.0]
[1726879106498,9.669,2574.2,2572.9,9.1522]
[1726879106724,9.669,2574.2,2573.2,3.0]
[1726879106941,9.669,2574.8,2573.4,9.1522]
[1726879107101,9.669,2574.8,2573.5,4.00069267]
[1726879110934,9.669,2574.8,2573.5,3.9229906]
[1726879110935,0.55,2574.7,2573.5,3.9229906]
[1726879111131,9.669,2574.6,2573.5,3.0]
[1726879112081,0.60850735,2574.5,2573.5,3.0]
[1726879113573,0.60850735,2574.5,2573.4,9.1522]
[1726879113574,0.55,2574.4,2573.4,9.1522]
[1726879117451,0.60850735,2574.5,2573.5,0.07771791]
[1726879117683,0.60850735,2574.5,2573.5,1.00069906]
[1726879118876,0.60850735,2574.5,2573.6,9.5525]
[1726879119083,0.60850735,2574.5,2573.7,3.0]
[1726879119407,9.669,2574.6,2573.7,3.0]
[1726879122578,7.18310503,2574.7,2573.8,9.5525]
[1726879129076,7.18310503,2574.7,2574.1,3.0]
[1726879129241,7.18310503,2575.1,2574.2,9.63018766]
[1726879129571,7.18310503,2575.1,2574.2,9.5525]
[1726879132978,7.18310503,2575.1,2574.3,3.0]
[1726879134657,7.18310503,2575.1,2573.7,9.2588]
[1726879134970,7.18310503,2575.1,2574.1,9.2588]
[1726879135285,0.64597947,2575.6,2574.3,9.2588]
[1726879135472,0.64597947,2575.6,2574.5,9.2588]
[1726879135629,0.64597947,2575.6,2574.9,3.0]
[1726879135830,0.0375987,2575.6,2575.1,9.2588]
[1726879136029,0.0375987,2575.6,2575.3,9.2588]
[1726879136274,0.0375987,2575.6,2575.3,10.17723589]
[1726879141998,0.0375987,2575.6,2575.4,3.0]
[1726879143791,0.0375987,2575.6,2575.5,12.33645059]
[1726879143952,0.0375987,2575.6,2575.5,12.2588]
[1726879144661,7.18310503,2576.2,2575.5,12.2588]
[1726879144662,7.18310503,2576.2,2575.7,3.0]
[1726879144912,0.0375987,2576.4,2576.0,9.2588]
[1726879145065,0.0375987,2576.4,2576.2,9.2588]
[1726879145773,7.15666473,2576.6,2576.2,9.2588]
[1726879147406,16.45466473,2577.1,2576.2,9.2588]
[1726879148578,0.55,2577.0,2576.1,3.0]
[1726879149068,9.298,2576.9,2576.1,3.0]
[1726879149268,0.55,2576.8,2575.7,9.2588]
[1726879150195,0.55,2576.8,2575.7,10.18468]
[1726879150508,0.55,2576.8,2575.8,3.0]
[1726879150874,9.298,2576.9,2575.8,3.0]
[1726879152593,9.298,2576.7,2575.8,3.0]
[1726879152795,9.298,2576.6,2575.2,9.2588]
[1726879152999,0.55,2576.5,2575.3,3.0]
[1726879153290,0.55,2576.5,2575.3,3.442991]
[1726879155821,9.0331,2576.4,2575.3,3.442991]
[1726879155971,0.55,2576.1,2574.8,9.1366]
[1726879156289,0.55,2576.1,2573.6,7.3]
[1726879156290,9.0331,2575.7,2574.2,9.1366]
[1726879156496,7.70666473,2575.6,2574.3,0.07767689]
[1726879156694,7.70666473,2575.6,2574.3,1.44585545]
[1726879156893,7.15666473,2575.6,2574.4,9.21427689]
[1726879157108,7.15666473,2575.6,2574.6,9.1366]
[1726879157407,7.15666473,2575.6,2574.8,9.1366]
[1726879157619,9.0331,2575.7,2574.9,3.07765728]
[1726879157773,9.0331,2575.7,2574.9,3.0]
[1726879157975,9.0331,2575.7,2574.4,9.1366]
[1726879158173,9.5831,2575.6,2574.4,9.1366]
[1726879159209,9.5831,2575.6,2573.8,0.442991]
[1726879159210,9.5831,2575.6,2574.1,9.1741987]
[1726879159415,9.0331,2575.3,2574.1,9.1741987]
[1726879159587,9.0331,2575.3,2574.2,1.43809781]
[1726879159973,9.0331,2575.3,2574.3,9.1366]
[1726879160580,9.0331,2575.3,2574.4,3.077674]
[1726879161973,9.0331,2575.3,2574.4,3.0]
[1726879163314,9.0331,2575.3,2574.4,3.07767369]
[1726879163477,9.0331,2575.3,2574.5,1.22142737]
[1726879164497,9.0331,2575.3,2574.5,1.29910109]
[1726879165005,9.0331,2575.8,2574.7,9.1366]
[1726879165180,9.0331,2575.8,2574.8,3.07765379]
[1726879165383,9.0331,2575.8,2574.9,1.26572448]
[1726879165586,9.0331,2575.8,2575.0,0.0776538]
[1726879167700,9.0331,2575.8,2574.8,3.0]
[1726879167903,9.0331,2575.8,2574.8,3.07766499]
[1726879168085,9.0331,2575.8,2574.8,3.52065599]
[1726879168289,9.0331,2575.8,2574.9,1.2657256]
[1726879168490,9.0331,2575.8,2575.0,0.07765383]
[1726879168929,9.0331,2575.8,2574.9,1.2657256]
[1726879171335,9.0331,2575.8,2575.0,0.07765792]
[1726879171689,9.0331,2575.8,2575.1,9.1366]
[1726879171895,9.0331,2575.8,2575.2,0.99907434]
[1726879172942,9.0331,2575.8,2575.2,3.99907434]
[1726879173242,9.0331,2576.1,2575.3,0.442991]
[1726879173394,9.0331,2576.1,2575.4,0.07764076]
[1726879173746,9.0331,2576.1,2575.4,0.52184651]
[1726879174696,9.0331,2576.1,2575.6,3.0]
[1726879174891,9.0331,2576.1,2575.6,3.0776408]
[1726879176015,7.15666473,2576.2,2575.6,3.0776408]
[1726879177935,9.5734,2576.4,2575.6,3.0776408]
[1726879178439,9.5734,2576.4,2575.6,3.0]
[1726879178609,9.5734,2576.4,2575.6,4.30828509]
[1726879179134,9.5734,2576.4,2575.6,4.23065]
[1726879179323,9.5734,2576.4,2575.6,3.0]
[1726879179629,9.5734,2576.4,2575.6,3.07764042]
[1726879179933,9.5734,2576.4,2575.6,3.0]
[1726879180433,9.5734,2576.4,2575.6,3.07764034]
[1726879180931,9.5734,2576.4,2575.7,1.28271313]
[1726879181096,9.5734,2576.4,2575.8,0.07763491]
[1726879181767,7.15666473,2576.6,2575.8,0.07763491]
[1726879182060,7.15666473,2576.6,2575.9,9.3065]
[1726879182274,9.5734,2576.7,2576.0,0.07763039]
[1726879183121,7.15666473,2576.9,2576.0,4.01604343]
[1726879183738,7.15666473,2576.9,2576.1,9.3065]
[1726879183942,7.15666473,2576.9,2576.2,0.07761991]
[1726879184152,16.76766343,2577.2,2576.3,9.3065]
[1726879184355,16.76766343,2577.2,2576.4,0.07761992]
[1726879184769,16.76766343,2577.2,2576.3,9.3065]
[1726879184930,16.76766343,2577.2,2576.3,10.23715]
[1726879185130,16.76766343,2577.2,2576.4,0.07761992]
[1726879185343,16.76766343,2577.2,2576.3,10.23715]
[1726879187372,16.76766343,2577.2,2576.0,10.24491304]
[1726879187663,9.5734,2577.1,2576.1,3.0]
[1726879188267,0.55,2577.0,2576.1,3.0]
[1726879188439,10.1234,2577.1,2576.1,3.0]
[1726879188643,10.1234,2577.1,2576.1,4.3244913]
[1726879189664,9.5734,2577.1,2576.1,4.40212275]
[1726879189981,9.5734,2577.1,2576.3,3.0]
[1726879190143,9.5734,2577.1,2576.4,0.07761987]
[1726879190582,7.19426343,2577.2,2576.4,0.07761987]
[1726879190754,7.19426343,2577.2,2576.4,1.31603186]
[1726879193577,7.19426343,2577.2,2576.4,1.23841199]
[1726879193783,7.19426343,2577.2,2576.3,3.0]
[1726879194480,7.19426343,2577.2,2576.3,3.0776182]
[1726879195083,7.19426343,2577.2,2576.3,3.0]
[1726879196182,7.19426343,2577.2,2576.2,9.3065]
[1726879196355,9.4503,2577.1,2576.2,9.3065]
[1726879197082,0.60792887,2577.0,2576.2,9.3065]
[1726879198185,0.60792887,2577.0,2576.0,9.572]
[1726879198380,0.60792887,2577.0,2576.1,3.0]
[1726879198877,9.4503,2576.9,2576.1,3.0]
[1726879200554,9.4503,2576.9,2575.7,9.572]
[1726879200768,9.4503,2576.9,2575.8,3.0]
[1726879202092,0.60792887,2577.0,2574.8,0.35957016]
[1726879202093,10.0003,2576.6,2574.9,9.572]
[1726879202390,9.4503,2576.3,2575.0,0.99315702]
[1726879202586,10.0003,2576.2,2575.0,0.99315702]
[1726879203292,10.0003,2576.2,2575.1,0.07765819]
[1726879203497,10.0003,2576.2,2575.1,1.18623881]
[1726879203896,10.0003,2576.2,2575.1,1.10858062]
[1726879205158,9.4503,2576.0,2574.6,10.014991]
[1726879205371,9.4503,2575.9,2574.6,10.014991]
[1726879205685,10.0003,2575.8,2574.6,10.014991]
[1726879205859,10.0003,2575.8,2574.6,9.572]
[1726879206061,9.4503,2575.6,2574.6,9.572]
[1726879206392,9.4503,2575.6,2574.7,0.98806073]
[1726879206882,9.4503,2575.6,2574.7,0.52066703]
[1726879207246,9.4503,2575.6,2574.7,3.52066703]
[1726879208394,9.4503,2575.6,2574.7,3.07767603]
[1726879209259,9.4503,2575.9,2574.9,3.0]
[1726879209472,9.4503,2575.9,2575.1,9.572]
[1726879209672,9.4503,2575.9,2575.2,0.07764949]
[1726879210991,9.4503,2575.9,2575.2,3.07764949]
[1726879217881,7.15666473,2576.0,2575.5,9.868]
[1726879218211,7.15666473,2576.0,2575.8,3.0]
[1726879218412,9.4186,2576.7,2575.9,9.868]
[1726879218413,7.15666473,2576.6,2575.9,9.868]
[1726879218715,16.57526473,2576.9,2576.0,0.0776292]
[1726879218878,16.57526473,2576.9,2576.0,3.0776292]
[1726879219520,7.15666473,2576.9,2576.0,3.0776292]
[1726879219685,0.0375987,2577.2,2576.4,3.0]
[1726879219887,0.0375987,2577.2,2576.8,3.0]
[1726879220115,0.0375987,2577.2,2576.9,2.1536602]
[1726879220277,0.0375987,2577.2,2577.1,3.0]
[1726879220478,0.0375987,2577.2,2577.1,4.05809296]
[1726879220721,0.0375987,2577.2,2577.1,5.56025884]
[1726879221079,0.0375987,2577.2,2577.1,6.65582464]
[1726879222016,0.0375987,2577.2,2577.1,16.52382464]
[1726879222232,0.0375987,2577.2,2577.1,16.446228]
[1726879223592,0.0375987,2577.9,2577.1,16.446228]
[1726879223593,0.0251974,2577.9,2577.1,16.446228]
[1726879223793,0.0251974,2577.9,2577.2,1.72221086]
[1726879224831,0.0251974,2577.9,2577.3,0.98049632]
[1726879224987,0.0251974,2577.9,2577.3,4.05808164]
[1726879225917,0.0251974,2577.9,2577.3,0.07758532]
[1726879226121,0.0251974,2577.9,2577.3,4.64616271]
[1726879226791,0.0251974,2577.9,2577.3,1.56857739]
[1726879228926,0.0251974,2577.9,2577.3,2.22556634]
[1726879230243,9.3307874,2578.1,2577.3,1.56857739]
[1726879230399,9.3307874,2578.1,2577.2,3.0]
[1726879231641,7.15666473,2578.3,2577.6,3.0]
[1726879231858,0.07118723,2578.0,2577.8,3.0]
[1726879232044,7.15666473,2578.6,2578.0,9.3313]
[1726879232244,12.2475987,2578.7,2578.0,9.3313]
[1726879232245,0.0375987,2578.7,2578.3,3.0]
[1726879232415,0.0375987,2578.7,2578.4,0.07754993]
[1726879233214,0.0375987,2578.7,2578.3,3.0]
[1726879238060,0.0375987,2579.5,2578.5,3.55]
[1726879238257,0.0375987,2579.5,2578.7,3.55]
[1726879238430,0.0375987,2579.5,2579.0,9.8138]
[1726879238636,0.0375987,2579.5,2579.1,0.6746336]
[1726879238965,0.06107241,2579.4,2579.3,3.0]
[1726879239172,0.06107241,2579.4,2579.3,3.07752237]
[1726879239470,0.0375987,2579.5,2579.3,3.59711133]
[1726879239634,0.0375987,2579.5,2579.3,3.0]
[1726879241749,0.0375987,2579.5,2579.3,3.59711133]
[1726879241968,0.0375987,2579.5,2579.3,3.67463797]
[1726879242171,0.0375987,2579.5,2579.3,3.59711133]
[1726879242545,0.0375987,2579.5,2578.9,9.8138]
[1726879242859,0.0375987,2579.5,2579.0,3.67464695]
[1726879244204,9.6466,2579.4,2579.0,0.59711133]
[1726879244378,9.6466,2579.4,2578.3,9.8138]
[1726879244580,0.06150258,2579.3,2578.4,0.07755329]
[1726879244775,0.06150258,2579.3,2578.4,0.53699795]
[1726879244995,0.06150258,2579.3,2578.6,9.8138]
[1726879245181,0.06150258,2579.3,2578.7,0.07753856]
[1726879246192,0.06150258,2579.3,2578.7,3.0]
[1726879252561,0.06150258,2579.3,2578.7,3.07754955]
[1726879252758,0.06150258,2579.3,2578.7,3.0]
[1726879253064,0.06150258,2579.3,2578.7,4.84744213]
[1726879253302,0.0375987,2579.5,2578.8,0.48851499]
[1726879253479,0.06130189,2579.4,2579.0,3.0]
[1726879253679,0.06130189,2579.4,2579.1,0.07752779]
[1726879254211,0.06130189,2579.4,2579.0,3.0]
[1726879254502,9.49490189,2579.4,2579.0,3.0]
[1726879255496,9.49490189,2579.4,2579.0,3.48851499]
[1726879255497,0.06130189,2579.4,2579.0,3.48851499]
[1726879255667,0.06130189,2579.4,2579.0,4.68886499]
[1726879256405,0.06130189,2579.4,2579.1,0.48851499]
[1726879257392,0.06130189,2579.4,2579.0,4.20035]
[1726879257796,0.06130189,2579.4,2579.0,3.0]
[1726879259230,0.06130189,2579.4,2579.0,3.07753669]
[1726879259583,0.06130189,2579.4,2579.0,3.56605168]
[1726879263710,0.06130189,2579.4,2579.1,0.48851499]
[1726879263913,0.06130189,2579.4,2579.2,0.07752522]
[1726879264110,0.06130189,2579.4,2579.3,9.0035]
[1726879264317,0.06130189,2579.4,2579.3,12.0035]
[1726879265060,0.06130189,2579.4,2579.1,3.0]
[1726879265364,0.06130189,2579.4,2579.1,3.07753257]
[1726879265686,0.06130189,2579.4,2579.1,3.0]
[1726879265835,0.06130189,2579.4,2579.1,3.07753136]
[1726879267028,0.06130189,2579.4,2579.1,3.07753171]
[1726879267769,0.06130189,2579.4,2579.1,4.28563488]
[1726879268069,0.06130189,2579.4,2579.1,0.07753171]
[1726879268283,0.06130189,2579.4,2578.9,3.07753263]
[1726879271782,0.06130189,2579.4,2578.9,3.53777567]
[1726879272091,0.06130189,2579.4,2579.0,0.46024304]
[1726879272278,0.06130189,2579.4,2579.1,0.0775327]
[1726879272485,0.06130189,2579.4,2579.1,0.53777574]
[1726879272648,9.49490189,2579.4,2579.1,0.46024304]
[1726879272992,9.49490189,2579.4,2578.4,0.46024304]
[1726879273287,9.49490189,2579.4,2578.0,9.757]
[1726879273491,9.49490189,2579.4,2578.3,0.46024304]
[1726879273865,9.49490189,2579.4,2578.4,0.553542]
[1726879274049,9.49490189,2579.4,2578.5,10.21724304]
[1726879274252,9.49490189,2579.4,2578.6,3.55352726]
[1726879274482,9.49490189,2579.4,2578.7,0.46024304]
[1726879274792,9.49490189,2579.4,2578.8,0.47891566]
[1726879278137,9.49490189,2579.4,2578.8,0.07753863]
[1726879278912,9.49490189,2579.4,2578.8,0.07753515]
[1726879279627,0.06130189,2579.4,2578.9,9.757]
[1726879279828,0.06130189,2579.4,2579.0,3.0]
[1726879280164,0.06130189,2579.4,2579.1,0.07753022]
[1726879280454,0.06130189,2579.4,2579.1,1.36098324]
[1726879285334,0.06130189,2579.4,2578.8,0.07753258]
[1726879285532,0.06130189,2579.4,2578.8,3.07753258]
[1726879286560,9.6868,2579.3,2578.8,3.0]
[1726879286764,0.06152199,2579.2,2578.8,3.0]
[1726879286922,9.6868,2579.3,2578.9,1.3217243]
[1726879287123,0.06150015,2579.2,2578.9,1.3217243]
[1726879287381,9.6868,2579.3,2578.9,1.39926092]
[1726879287518,0.06150015,2579.2,2578.9,1.3217243]
[1726879287862,9.6868,2579.3,2578.9,1.3217243]
[1726879288055,0.06146497,2579.1,2578.7,0.46024304]
[1726879288358,0.06142979,2579.0,2578.8,0.07753848]
[1726879288558,9.6868,2579.3,2578.8,0.07753848]
[1726879288861,0.06150015,2579.2,2578.8,0.53778152]
[1726879289224,9.6868,2579.3,2578.4,9.757]
[1726879289462,0.06146497,2579.1,2578.5,1.0217243]
[1726879289659,0.06146086,2579.2,2578.5,1.0217243]
[1726879289833,0.06139049,2579.0,2578.5,1.0217243]
[1726879290121,9.74813564,2578.9,2578.4,0.46024304]
[1726879291122,9.74813564,2578.9,2578.5,0.07754933]
[1726879291319,9.74813564,2578.9,2578.5,0.53779237]
[1726879292367,9.74813564,2578.9,2578.6,0.52907142]
[1726879292531,9.74813564,2578.9,2578.7,0.52907142]
[1726879292732,9.74813564,2578.9,2578.6,0.52907142]
[1726879293043,9.74813564,2578.9,2578.7,0.52907142]
[1726879293243,9.74813564,2578.9,2578.8,0.52907142]
[1726879293543,9.74813564,2578.9,2578.6,0.52907142]
[1726879293745,9.74813564,2578.9,2578.7,0.52907142]
[1726879294070,9.74813564,2578.9,2578.8,0.52907142]
[1726879294372,9.74813564,2578.9,2578.6,0.52907142]
[1726879294570,9.74813564,2578.9,2578.7,0.52907142]
[1726879294774,9.74813564,2578.9,2578.8,0.52907142]
[1726879295071,9.74813564,2578.9,2578.6,0.52907142]
[1726879295268,9.74813564,2578.9,2578.7,0.52907142]
[1726879295450,9.74813564,2578.9,2578.8,0.52907142]
[1726879295660,9.74813564,2578.9,2578.6,0.52907142]
[1726879295859,9.74813564,2578.9,2578.7,0.52907142]
[1726879296061,9.74813564,2578.9,2578.8,0.52907142]
[1726879296264,9.74813564,2578.9,2578.6,0.52907142]
[1726879296558,9.74813564,2578.9,2578.7,0.52907142]
[1726879296724,9.74813564,2578.9,2578.8,0.52907142]
[1726879300067,0.06133564,2578.9,2578.8,0.52907142]
[1726879300574,0.06127887,2578.9,2578.8,0.52907142]
[1726879300734,9.9559,2579.1,2578.8,0.52907142]
[1726879300928,9.9559,2579.1,2578.5,0.53779237]
[1726879300929,0.06131406,2579.0,2578.5,0.53779237]
[1726879301133,0.06131406,2579.0,2578.5,0.89157161]
[1726879302480,0.06131406,2579.0,2578.6,0.46024304]
[1726879302676,0.06131406,2579.0,2578.7,0.07754644]
[1726879302851,0.06131406,2579.0,2578.7,3.07754644]
[1726879303051,9.9559,2579.3,2578.7,3.07754644]
[1726879303250,0.06131448,2578.9,2578.7,3.07754644]
[1726879303655,9.9559,2579.3,2578.7,3.07754644]
[1726879303854,0.0612793,2578.8,2578.7,0.07754644]
[1726879304050,9.9559,2579.3,2578.7,0.07754644]
[1726879304254,0.06127022,2578.8,2578.7,0.07754644]
[1726879304478,9.9559,2579.3,2578.7,0.07754644]
[1726879305135,0.06141096,2579.2,2578.7,0.07754644]
[1726879308302,0.06141096,2579.2,2578.7,0.43132539]
[1726879311902,0.06141096,2579.2,2579.0,0.55]
[1726879312086,0.06141096,2579.2,2579.1,26.49616069]
[1726879312394,0.0375987,2579.5,2579.4,3.55]
[1726879312599,0.0375987,2579.5,2579.4,23.6732247]
[1726879312752,0.0375987,2579.5,2579.4,29.30462075]